Workbook

Sheet SBS
A1: Planilha de Custo e Formação de Preço Oficial
B3: Número do processo | C3: 23474.000066/2021-61
B4: Licitação nº | C4: 025/2021
B6: Dia 23/03/2021 às 09:00 horas
B8: Discriminação dos Serviços (dados referentes à contratação)
A10: A | B10: Data de apreciação da proposta (dia/mês/ano)
A11: B | B11: Município/DF | C11: São Bento do Sul/SC
A12: C | B12: CCT | C12: SC000148/2021 – Jaraguá do Sul e Região
A13: D | B13: Nº de meses de execução contratual | C13: 12
B15: Identificação do serviço
B16: Servente de limpeza
B17: Posto de serviço: | E17: 4
B18: Nº de empregados: | E18: 4
B19: Nº de dias trabalhados: | E19: 22
B20: Carga horária semanal: | E20: 44
B21: Valor vale transporte | E21: 4.75
B22: Valor auxílio alimentação: | E22: 18.23
A24: Dados para composição dos custos referentes a mão de obra
A26: 1 | B26: Tipo de serviço | E26: Servente | F26: Servente c/ risco
A27: 2 | B27: Classificação Brasileira de Ocupações (CBO) | E27: 5143-20 | F27: 5143-20
A28: 3 | B28: Salário normativo da categoria profissional | E28: 1222.93 | F28: 1222.93
A29: 4 | B29: Categoria profissional
A30: 5 | B30: Data base da categoria | E30: 2021-01-01 | F30: 2021-01-01
B32: Módulo 1 - Composição da remuneração
A33: 1 | B33: Composição da remuneração | D33: % | E33: Valor (R$) | F33: Valor (R$)
A34: A | B34: Salário base | E34: =E28 -> 1222.93 | F34: =F28 -> 1222.93
A35: B | B35: Adicional de periculosidade | D35: 0.3 | E35: 0 | F35: =F34*D35 -> 366.879
A36: C | B36: Adicional de insalubridade | D36: 0.2 | E36: =E34*D36 -> 244.586 | F36: 0
A37: D | B37: Adicional noturno | E37: 0 | F37: 0
A38: E | B38: Adicional de hora noturna reduzida | E38: 0 | F38: 0
A39: F | B39: Outros (especificar) | E39: 0 | F39: 0
B40: Total | E40: =SUM(E34:E39) -> 1467.516 | F40: =SUM(F34:F39) -> 1589.809
B42: Módulo 2 – Encargos e benefícios anuais, mensais e diários
B43: Submódulo 2.1 – 13º (décimo terceiro) salário, férias e adicional de férias
A44: 2.1 | B44: 13º (décimo terceiro) salário, férias e adicional de férias | D44: % | E44: Valor (R$) | F44: Valor (R$)
A45: A | B45: 13º (décimo terceiro) salário | D45: 0.0833 | E45: =E40*D45 -> 122.2440828 | F45: =F40*D45 -> 132.4310897
A46: B | B46: Férias e adicional de férias | D46: 0.1111 | E46: =E45*D46 -> 13.5813176 | F46: =F45*D46 -> 14.71309407
B47: Total | E47: =SUM(E45:E46) -> 135.8254004 | F47: =SUM(F45:F46) -> 147.1441838
B49: Submódulo 2.2 – Encargos previdenciários (GPS), fundo de garantia por tempo de serviços (FGTS) e outras contribuições
A50: 2.2 | B50: GPS, FGTS e outras contribuições | D50: % | E50: Valor (R$) | F50: Valor (R$)
A51: A | B51: INSS | D51: 0.2 | E51: =($E$40+$E$47)*D51 -> 320.6682801 | F51: =($F$40+$F$47)*D51 -> 347.3906368
A52: B | B52: Salário educação | D52: 0.025 | E52: =($E$40+$E$47)*D52 -> 40.08353501 | F52: =($F$40+$F$47)*D52 -> 43.42382959
A53: C | B53: SAT | D53: 0.0496 | E53: =($E$40+$E$47)*D53 -> 79.52573346 | F53: =($F$40+$F$47)*D53 -> 86.15287791
A54: D | B54: SESC ou SESI | D54: 0.015 | E54: =($E$40+$E$47)*D54 -> 24.05012101 | F54: =($F$40+$F$47)*D54 -> 26.05429776
A55: E | B55: SENAI – SENAC | D55: 0.01 | E55: =($E$40+$E$47)*D55 -> 16.033414 | F55: =($F$40+$F$47)*D55 -> 17.36953184
A56: F | B56: SEBRAE | D56: 0.006 | E56: =($E$40+$E$47)*D56 -> 9.620048402 | F56: =($F$40+$F$47)*D56 -> 10.4217191
A57: G | B57: INCRA | D57: 0.002 | E57: =($E$40+$E$47)*D57 -> 3.206682801 | F57: =($F$40+$F$47)*D57 -> 3.473906368
A58: H | B58: FGTS | D58: 0.08 | E58: =($E$40+$E$47)*D58 -> 128.267312 | F58: =($F$40+$F$47)*D58 -> 138.9562547
B59: Total | D59: =SUM(D51:D58) -> 0.3876 | E59: =SUM(E51:E58) -> 621.4551268 | F59: =SUM(F51:F58) -> 673.243054
B61: Submódulo 2.3 – Benefícios mensais e diários
A62: 2.3 | B62: Benefícios mensais e diários | D62: % | E62: Valor (R$) | F62: Valor (R$)
A63: A | B63: Transporte | D63: =E21 -> 4.75 | E63: =IF(E21=0,0,((E19*2)*E21)-(E34*0.06)) -> 135.6242 | F63: =IF(E21=0,0,((E19*2)*E21)-(F34*0.06)) -> 135.6242
A64: B | B64: Auxílio-refeição/alimentação | D64: =E22 -> 18.23 | E64: =(E19*E22)-(E19*E22*0.01) -> 397.0494 | F64: =(E19*E22)-(E19*E22*0.01) -> 397.0494
A65: C | B65: Contribuição sindical patronal | D65: 0.01 | E65: =(E28+E36)*$D$65 -> 14.67516 | F65: =(F28+F36)*$D$65 -> 12.2293
A66: D | B66: Contribuição sindical laboral | D66: 11 | E66: =D66 -> 11 | F66: =D66 -> 11
A67: D.1 | B67: Prêmio assiduidade | D67: 0.05 | E67: =E40*D67 -> 73.3758 | F67: =F40*D67 -> 79.49045
B68: Total | E68: =SUM(E63:E67) -> 631.72456 | F68: =SUM(F63:F67) -> 635.39335
B70: Quadro-resumo do módulo 2 – Encargos e benefícios anuais, mensais e diários
A71: 2 | B71: Encargos e benefícios anuais, mensais e diários | D71: % | E71: Valor (R$) | F71: Valor (R$)
A72: 2.1 | B72: 13º (décimo terceiro) salário, férias e adicional de férias | E72: =E47 -> 135.8254004 | F72: =F47 -> 147.1441838
A73: 2.2 | B73: GPS, FGTS e outras contribuições | E73: =E59 -> 621.4551268 | F73: =F59 -> 673.243054
A74: 2.3 | B74: Benefícios mensais e diários | E74: =E68 -> 631.72456 | F74: =F68 -> 635.39335
B75: Total | E75: =SUM(E72:E74) -> 1389.005087 | F75: =SUM(F72:F74) -> 1455.780588
B77: Módulo 3 – Provisão para rescisão
A78: 3 | B78: Provisão para rescisão | D78: % | E78: Valor (R$) | F78: Valor (R$)
A79: A | B79: Aviso prévio indenizado | D79: 0.0042 | E79: =E40*D79 -> 6.1635672 | F79: =F40*D79 -> 6.6771978
A80: B | B80: Incidência do FGTS sobre o aviso prévio indenizado | D80: 0.000333 | E80: =E40*D80 -> 0.488682828 | F80: =F40*D80 -> 0.529406397
A81: C | B81: Multa do FGTS e contribuição social sobre o aviso prévio indenizado | D81: 0.0016 | E81: =E40*D81 -> 2.3480256 | F81: =F40*D81 -> 2.5436944
A82: D | B82: Aviso prévio trabalhado | D82: 0.0185 | E82: =E40*D82 -> 27.149046 | F82: =F40*D82 -> 29.4114665
A83: E | B83: Incidência de GPS, FGTS e outras contribuições sobre o aviso prévio trabalhado | D83: =D59 -> 0.3876 | E83: =E82*D83 -> 10.52297023 | F83: =F82*D83 -> 11.39988442
A84: F | B84: Multa do FGTS e contribuição social sobre o aviso prévio trabalhado | D84: 0.0304 | E84: =E40*D84 -> 44.6124864 | F84: =F40*D84 -> 48.3301936
B85: Total | E85: =SUM(E79:E84) -> 91.28477826 | F85: =SUM(F79:F84) -> 98.89184311
B87: Módulo 4 – Custo de reposição do profissional ausente
B88: Submódulo 4.1 – Substituto nas ausências legais
A89: 4.1 | B89: Composição do custo de reposição do profissional ausente | D89: % | E89: Valor (R$) | F89: Valor (R$)
A90: A | B90: Substituto na cobertura de férias | D90: 0.0833 | E90: =E40*D90 -> 122.2440828 | F90: =F40*D90 -> 132.4310897
A91: B | B91: Substituto na cobertura de ausências legais | D91: 0.0139 | E91: =E40*D91 -> 20.3984724 | F91: =F40*D91 -> 22.0983451
A92: C | B92: Substituto na cobertura de licença-paternidade | D92: 0.0008 | E92: =E40*D92 -> 1.1740128 | F92: =F40*D92 -> 1.2718472
A93: D | B93: Substituto na cobertura de ausência por acidente de trabalho | D93: 0.0038 | E93: =E40*D93 -> 5.5765608 | F93: =F40*D93 -> 6.0412742
A94: E | B94: Substituto na cobertura de afastamento maternidade | D94: 0.0009 | E94: =E40*D94 -> 1.3207644 | F94: =F40*D94 -> 1.4308281
A95: F | B95: Substituto na cobertura de Outras ausências (especificar) | D95: 0 | E95: =E40*D95 -> 0 | F95: =F40*D95 -> 0
B96: Total | E96: =SUM(E90:E95) -> 150.7138932 | F96: =SUM(F90:F95) -> 163.2733843
B98: Submódulo 4.2 – Substituto na intrajornada
A99: 4.2 | B99: Substituto na intrajornada | D99: % | E99: Valor (R$) | F99: Valor (R$)
A100: A | B100: Substituto na cobertura de intervalo para repouso ou alimentação | D100: 0 | E100: =E40*D100 -> 0 | F100: =F40*D100 -> 0
B101: Total | E101: =SUM(E100:E100) -> 0 | F101: =SUM(F100:F100) -> 0
B103: Quadro-resumo do Módulo 4 – Custo de reposição do profissional ausente
A104: 4 | B104: Custo de reposição do profissional ausente | D104: % | E104: Valor (R$) | F104: Valor (R$)
A105: 4.1 | B105: Substituto nas ausências legais | E105: =E96 -> 150.7138932 | F105: =F96 -> 163.2733843
A106: 4.2 | B106: Substituto na intrajornada | E106: =E101 -> 0 | F106: =F101 -> 0
B107: Total | E107: =SUM(E105:E106) -> 150.7138932 | F107: =SUM(F105:F106) -> 163.2733843
B109: Módulo 5 - Insumos diversos
A110: 5 | B110: Insumos diversos | D110: % | E110: Valor (R$) | F110: Valor (R$)
A111: A | B111: Uniformes | D111: 0 | E111: =Uniforme!G29 -> 28.78688986 | F111: =Uniforme!G29 -> 28.78688986
A112: B | B112: Materiais | D112: 0 | E112: =Produto!G62 -> 661.8915677 | F112: =Produto!G62 -> 661.8915677
A113: C | B113: Equipamentos | D113: 0 | E113: =Equipamento!F14 -> 40 | F113: =Equipamento!F14 -> 40
A114: D | B114: Outros (especificar) | D114: 0 | E114: 0 | F114: 0
B115: Total de Insumos diversos | E115: =SUM(E111:E114) -> 730.6784575 | F115: =SUM(F111:F114) -> 730.6784575
B117: Módulo 6 - Custos indiretos, tributos e lucro
A118: 6 | B118: Custos Indiretos, tributos e lucro | D118: % | E118: Valor (R$) | F118: Valor (R$)
A119: A | B119: Custos indiretos | D119: 0.0084 | E119: =(E40+E75+E85+E107+E115)*D119 -> 32.16526502 | F119: =(F40+F75+F85+F107+F115)*D119 -> 33.92283949
A120: B | B120: Lucro | D120: 0.004966 | E120: =(E40+E75+E85+E107+E115+E119)*D120 -> 19.17553105 | F120: =(F40+F75+F85+F107+F115+F119)*D120 -> 20.22332045
A121: C | B121: Tributos | D121: =SUM(D122:D124) -> 0.1425 | E121: =SUM(E122:E124) -> 644.8709146 | F121: =SUM(F122:F124) -> 680.1079524
A122: C1 | B122: Tributos federais PIS 1,65% - Confins 7,60% | D122: 0.0925 | E122: =((E40+E75+E85+E107+E115+E119+E120)/(1-D121))*D122 -> 418.6004182 | F122: =((F40+F75+F85+F107+F115+F119+F120)/(1-D121))*D122 -> 441.4735831
A123: C2 | B123: Tributos estaduais (especificar) | D123: 0 | E123: =(E40+E75+E85+E107+E115+E119+E120)*D123 -> 0 | F123: =(F40+F75+F85+F107+F115+F119+F120)*E123 -> 0
A124: C3 | B124: Tributos municipais (especificar) | D124: 0.05 | E124: =((E40+E75+E85+E107+E115+E119+E120)/(1-D121))*D124 -> 226.2704963 | F124: =((F40+F75+F85+F107+F115+F119+F120)/(1-D121))*D124 -> 238.6343693
B125: Total | E125: =SUM(E119:E121) -> 696.2117106 | F125: =SUM(F119:F121) -> 734.2541123
A127: Quadro-resumo do custo por empregado
B129: Mão de obra vinculada à execução contratual | E129: (R$) | F129: (R$)
A130: A | B130: Módulo 1 - Composição da remuneração | E130: =E40 -> 1467.516 | F130: =F40 -> 1589.809
A131: B | B131: Módulo 2 – Encargos e benefícios anuais, mensais e diários | E131: =E75 -> 1389.005087 | F131: =F75 -> 1455.780588
A132: C | B132: Módulo 3 – Provisão para rescisão | E132: =E85 -> 91.28477826 | F132: =F85 -> 98.89184311
A133: D | B133: Módulo 4 – Custo de reposição do profissional ausente | E133: =E107 -> 150.7138932 | F133: =F107 -> 163.2733843
A134: E | B134: Módulo 5 - Insumos diversos | E134: =E115 -> 730.6784575 | F134: =F115 -> 730.6784575
A135: Subtotal (A + B +C+ D+E) | E135: =SUM(E130:E134) -> 3829.198216 | F135: =SUM(F130:F134) -> 4038.433273
A136: F | B136: Módulo 6 - Custos indiretos, tributos e lucro | E136: =E125 -> 696.2117106 | F136: =F125 -> 734.2541123
A137: Valor total por empregado | E137: =E135+E136 -> 4525.409927 | F137: =F135+F136 -> 4772.687385
A139: Quadro-resumo do valor mensal dos serviços
A141: Tipo de serviço | B141: Valor proposto por empregado | C141: Quantidade de empregados por posto | D141: Valor proposto por posto | E141: Quantidade de postos | F141: Valor total do serviço
A142: 1 | B142: =E137 -> 4525.409927 | C142: 1 | D142: =B142*C142 -> 4525.409927 | E142: 3 | F142: =D142*E142 -> 13576.22978
A143: 2 | B143: =F137 -> 4772.687385 | C143: 1 | D143: =B143*C143 -> 4772.687385 | E143: 1 | F143: =D143*E143 -> 4772.687385
B144: Valor mensal dos serviços | F144: =SUM(F142:F143) -> 18348.91717
A146: Quadro demonstrativo do valor global da proposta
A148: A | B148: Valor proposto por unidade de medida (valor posto) | G148: =D142 -> 4525.409927
A149: B | B149: Valor mensal do serviço (por produtividade x área) | G149: =G230 -> 17900
A150: C | B150: Valor global da propostas | G150: =G149*C13 -> 214800
B152: Complemento dos serviços de limpeza e conservação
A154: Mão de obra | B154: Área | C154: Produtividade | E154: Preço homem-mês | F154: Subtotal
A155: Encarregado | B155: Pisos acarpetados | C155: 1200 | D155: =1/(30*C155) -> 2.777777778e-05 | E155: 0 | F155: =D155*E155 -> 0
A156: Servente | D156: =1/C155 -> 0.0008333333333 | E156: =D142 -> 4525.409927 | F156: =D156*E156 -> 3.771174939
F157: =F155+F156 -> 3.771174939
A158: Encarregado | B158: Pisos frios | C158: 1200 | D158: =1/(30*C158) -> 2.777777778e-05 | E158: 0 | F158: =D158*E158 -> 0
A159: Servente | D159: =1/C158 -> 0.0008333333333 | E159: =D142 -> 4525.409927 | F159: =D159*E159 -> 3.771174939
F160: =F158+F159 -> 3.771174939
A161: Encarregado | B161: Laboratórios | C161: 450 | D161: =1/(30*C161) -> 7.407407407e-05 | E161: 0 | F161: =D161*E161 -> 0
A162: Servente | D162: =1/C161 -> 0.002222222222 | E162: =D142 -> 4525.409927 | F162: =D162*E162 -> 10.0564665
F163: =F161+F162 -> 10.0564665
A164: Encarregado | B164: Almoxarifado/galpões | C164: 2500 | D164: =1/(30*C164) -> 1.333333333e-05 | E164: 0 | F164: =D164*E164 -> 0
A165: Servente | D165: =1/C164 -> 0.0004 | E165: =D142 -> 4525.409927 | F165: =D165*E165 -> 1.810163971
F166: =F164+F165 -> 1.810163971
A167: Encarregado | B167: Oficinas | C167: 1800 | D167: =1/(30*C167) -> 1.851851852e-05 | E167: 0 | F167: =D167*E167 -> 0
A168: Servente | D168: =1/C167 -> 0.0005555555556 | E168: =D142 -> 4525.409927 | F168: =D168*E168 -> 2.514116626
F169: =F167+F168 -> 2.514116626
A170: Encarregado | B170: Áreas com espaços livres – saguão, hall e salão | C170: 1500 | D170: =1/(30*C170) -> 2.222222222e-05 | E170: 0 | F170: =D170*E170 -> 0
A171: Servente | D171: =1/C170 -> 0.0006666666667 | E171: =D142 -> 4525.409927 | F171: =D171*E171 -> 3.016939951
F172: =F170+F171 -> 3.016939951
A173: Encarregado | B173: Banheiros | C173: 300 | D173: =1/(30*C173) -> 0.0001111111111 | E173: 0 | F173: =D173*E173 -> 0
A174: Servente | D174: =1/C173 -> 0.003333333333 | E174: =D142 -> 4525.409927 | F174: =D174*E174 -> 15.08469976
F175: =F173+F174 -> 15.08469976
A176: Encarregado | B176: Pisos pavimentados adjacentes/contínuos às edificações | C176: 2700 | D176: =1/(30*C176) -> 1.234567901e-05 | E176: 0 | F176: =D176*E176 -> 0
A177: Servente | D177: =1/C176 -> 0.0003703703704 | E177: =D142 -> 4525.409927 | F177: =D177*E177 -> 1.676077751
F178: =F176+F177 -> 1.676077751
A179: Encarregado | B179: Varrição de passeios e arruamentos | C179: 9000 | D179: =1/(30*C179) -> 3.703703704e-06 | E179: 0 | F179: =D179*E179 -> 0
A180: Servente | D180: =1/C179 -> 0.0001111111111 | E180: =D142 -> 4525.409927 | F180: =D180*E180 -> 0.5028233252
F181: =F179+F180 -> 0.5028233252
A182: Encarregado | B182: Pátios e áreas verdes com alta frequência | C182: 2700 | D182: =1/(30*C182) -> 1.234567901e-05 | E182: 0 | F182: =D182*E182 -> 0
A183: Servente | D183: =1/C182 -> 0.0003703703704 | E183: =D142 -> 4525.409927 | F183: =D183*E183 -> 1.676077751
F184: =F182+F183 -> 1.676077751
A185: Encarregado | B185: Pátios e áreas verdes com média frequência | C185: 2700 | D185: =1/(30*C185) -> 1.234567901e-05 | E185: 0 | F185: =D185*E185 -> 0
A186: Servente | D186: =1/C185 -> 0.0003703703704 | E186: =D142 -> 4525.409927 | F186: =D186*E186 -> 1.676077751
F187: =F185+F186 -> 1.676077751
A188: Encarregado | B188: Pátios e áreas verdes com baixa frequência | C188: 2700 | D188: =1/(30*C188) -> 1.234567901e-05 | E188: 0 | F188: =D188*E188 -> 0
A189: Servente | D189: =1/C188 -> 0.0003703703704 | E189: =D142 -> 4525.409927 | F189: =D189*E189 -> 1.676077751
F190: =F188+F189 -> 1.676077751
A191: Encarregado | B191: Coleta de detritos em pátios e áreas verdes com frequência diária | C191: 100000 | D191: =1/(30*C191) -> 3.333333333e-07 | E191: 0 | F191: =D191*E191 -> 0
A192: Servente | D192: =1/C191 -> 1e-05 | E192: =D142 -> 4525.409927 | F192: =D192*E192 -> 0.04525409927
F193: =F191+F192 -> 0.04525409927
A194: Encarregado | B194: Áreas hospitalares e assemelhadas | C194: 450 | D194: =1/(30*C194) -> 7.407407407e-05 | E194: 0 | F194: =D194*E194 -> 0
A195: Servente | D195: =1/C194 -> 0.002222222222 | E195: =D142 -> 4525.409927 | F195: =D195*E195 -> 10.0564665
F196: =F194+F195 -> 10.0564665
A197: Mão de obra | B197: Área | C197: Produtividade | E197: Frequência no mês | F197: Jornada de trabalho no semestre | G197: Preço homem-mês | H197: Subtotal
A198: Encarregado | B198: Face externa com exposição a situação de risco | C198: 160 | D198: =1/(30*C198) -> 0.0002083333333 | E198: 16 | F198: =D198*E198*(1/188.76) -> 1.765910857e-05 | G198: 0 | H198: =F198*G198 -> 0
A199: Servente | D199: =1/C198 -> 0.00625 | E199: 16 | F199: =D199*E199*(1/188.76) -> 0.000529773257 | G199: =D143 -> 4772.687385 | H199: =F199*G199 -> 2.528442141
H200: =H198+H199 -> 2.528442141
A201: Encarregado | B201: Face externa sem exposição a situação de risco | C201: 380 | D201: =1/(30*C201) -> 8.771929825e-05 | E201: 16 | F201: =D201*E201*(1/188.76) -> 7.435414134e-06 | G201: 0 | H201: =F201*G201 -> 0
A202: Servente | D202: =1/C201 -> 0.002631578947 | E202: 16 | F202: =D202*E202*(1/188.76) -> 0.000223062424 | G202: =D142 -> 4525.409927 | H202: =F202*G202 -> 1.009448908
H203: =H201+H202 -> 1.009448908
A204: Encarregado | B204: Face interna | C204: 380 | D204: =1/(30*C204) -> 8.771929825e-05 | E204: 16 | F204: =D204*E204*(1/188.76) -> 7.435414134e-06 | G204: 0 | H204: =F204*G204 -> 0
A205: Servente | D205: =1/C204 -> 0.002631578947 | E205: 16 | F205: =D205*E205*(1/188.76) -> 0.000223062424 | G205: =D142 -> 4525.409927 | H205: =F205*G205 -> 1.009448908
H206: =H204+H205 -> 1.009448908
A207: Encarregado | B207: Fachadas envidraçadas | C207: 160 | D207: =1/(4*C207) -> 0.0015625 | E207: 8 | F207: =D207*E207*(1/1132.6) -> 1.103655306e-05 | G207: 0 | H207: =F207*G207 -> 0
A208: Servente | D208: =1/C207 -> 0.00625 | E208: 8 | F208: =D208*E208*(1/1132.6) -> 4.414621225e-05 | G208: =D143 -> 4772.687385 | H208: =F208*G208 -> 0.2106960703
H209: =H207+H208 -> 0.2106960703
B212: Tipo de área | C212: Preço mensal unitário | D212: Área | E212: Periodicidade (diária) | F212: Área total à ser limpa | G212: Subtotal
B213: Almoxarifados/galpões | C213: =F165 -> 1.810163971 | D213: 29.28 | E213: 0.1 | F213: =D213*E213 -> 2.928 | G213: =C213*F213 -> 5.300160106
B214: Áreas com espaços livres - saguão, hall e salão (circulação interna) | C214: =F171 -> 3.016939951 | D214: 487.35 | E214: 1 | F214: =D214*E214 -> 487.35 | G214: =C214*F214 -> 1470.305685
B215: Áreas com espaços livres - saguão, hall e salão (ginásio) | C215: =F171 -> 3.016939951 | D215: 729 | E215: 0.2 | F215: =D215*E215 -> 145.8 | G215: =C215*F215 -> 439.8698449
B216: Banheiros | C216: =F174 -> 15.08469976 | D216: =88+1.8 -> 89.8 | E216: 0.4 | F216: =D216*E216 -> 35.92 | G216: =C216*F216 -> 541.8424152
B217: Banheiros | C217: =F174 -> 15.08469976 | D217: 137.1 | E217: 2 | F217: =D217*E217 -> 274.2 | G217: =C217*F217 -> 4136.224673
B218: Esquadria externa sem risco | C218: =H202 -> 1.009448908 | D218: 368.6 | E218: 0.004166667 | F218: =D218*E218 -> 1.535833456 | G218: =C218*F218 -> 1.550345405
B219: Esquadrias externas sem risco | C219: =H202 -> 1.009448908 | D219: 134.07 | E219: 0.008333333 | F219: =D219*E219 -> 1.117249955 | G219: =C219*F219 -> 1.127806747
B220: Esquadrias externas com risco | C220: =H199 -> 2.528442141 | D220: 201.11 | E220: 0.008333333 | F220: =D220*E220 -> 1.6759166 | G220: =C220*F220 -> 4.237458155
B221: Laboratório | C221: =F162 -> 10.0564665 | D221: 559.66 | E221: 0.4 | F221: =D221*E221 -> 223.864 | G221: =C221*F221 -> 2251.280817
B222: Laboratório | C222: =F162 -> 10.0564665 | D222: 58.56 | E222: 1 | F222: =D222*E222 -> 58.56 | G222: =C222*F222 -> 588.9066785
B223: Oficina | C223: =F168 -> 2.514116626 | D223: 75.47 | E223: 0.2 | F223: =D223*E223 -> 15.094 | G223: =C223*F223 -> 37.94807635
B224: Piso frio | C224: =F159 -> 3.771174939 | D224: =328.11+736.93 -> 1065.04 | E224: 1 | F224: =D224*E224 -> 1065.04 | G224: =C224*F224 -> 4016.452157
B225: Piso frio | C225: =F159 -> 3.771174939 | D225: 540 | E225: 2 | F225: =D225*E225 -> 1080 | G225: =C225*F225 -> 4072.868934
B226: Piso frio | C226: =F159 -> 3.771174939 | D226: =10+162 -> 172 | E226: 0.2 | F226: =D226*E226 -> 34.4 | G226: =C226*F226 -> 129.7284179
B227: Piso frio | C227: =F159 -> 3.771174939 | D227: 9.2 | E227: 0.4 | F227: =D227*E227 -> 3.68 | G227: =C227*F227 -> 13.87792378
B228: Pisos pavimentados adjacentes/contíguos às edificações | C228: =F177 -> 1.676077751 | D228: 1124 | E228: 0.1 | F228: =D228*E228 -> 112.4 | G228: =C228*F228 -> 188.3911392
... 2 more rows

Sheet MemCalculo
A1: Planilha de Custos e Formação de Preços
A2: =[1]Configurar!C7&" - "&[1]Configurar!D8&" "&[1]Configurar!Q8 -> Processo Licitatório - Pregão Eletrônico 025/2021
A3: Memórias de Cálculo
A5: Módulo 2 - Encargos e Benefícios Anuais, Mensais e Diários
A7: Submódulo 2.1 - 13º (décimo terceiro) salário, férias e adicional de férias
A9: 13° Salário | B9: =(1/12) -> 0.08333333333 | C9: {[1 (mês) : 12 (meses)] x 100}
A10: C F 1988 Art 7° Inc VIII - Lei 4090 13/07/1962 Art 1° AO 3° - Lei 7787 30/06/1989 ART 1° § Único - Acórdão TCU 1753/2008 Plenário - Apelação Cível TRF 3° Região 303419 - Resolução CNJ 98/2009
A12: Adicional de férias | B12: =(1/3)*(1/12) -> 0.02777777778 | C12: {(1/3) x [1 (mês) : 12 (meses)] x 100}
A13: C F 1988 Art 7° Inc VIII
A14: Férias | B14: =(1/12) -> 0.08333333333 | C14: 1 (mês) : 12 (meses) x 100
A15: C F 1988 Art 7° Inc VIII - Lei 4090 13/07/1962 Art 1° AO 3° - Lei 7787 30/06/1989 Art 1° § Único - Acórdão TCU 1753/2008 Plenário - Apelação Cível TRF 3° Região 303419 - Resolução CNJ 98/2009
A17: Total | B17: =SUM(B9:B14) -> 0.1944444444
A18: Submódulo 2.2 - Encargos previdenciários (GPS), Fundo Garantia Tempo de Serviço (FGTS) e outras contribuições
A20: Item/Fundamentação | B20: Alíq (%) | C20: Memória de cálculo
A21: INSS | B21: 0.2 | C21: [(Total de Remuneração) x (Alíquota)]
A22: Art. 22, inciso I da Lei nº 8.212/91
A23: SESI ou SESC | B23: 0.015 | C23: [(Total de Remuneração) x (Alíquota)]
A24: Art. 30 da Lei nº 8.036/90 e art. 1º da Lei nº 8.154/90
A25: SENAI ou SENAC | B25: 0.01 | C25: [(Total de Remuneração) x (Alíquota)]
A26: Decreto-Lei nº 2.318/86
A27: INCRA | B27: 0.002 | C27: [(Total de Remuneração) x (Alíquota)]
A28: Art. 1º, inciso I, do Decreto-Lei nº 1.146/70
A29: Salário educação | B29: 0.025 | C29: [(Total de Remuneração) x (Alíquota)]
A30: Art. 3º, inciso I, do Decreto nº 87.043/82
A31: FGTS | B31: 0.08 | C31: [(Total de Remuneração) x (Alíquota)]
A32: Art. 15 da Lei nº 8.036/90 e art. 7º, inciso III, da Constituição Federal de 1988
A33: Seguro acidente do trabalho | B33: =D33*G33 -> 0.049587 | C33: RAT | D33: =[1]Configurar!Z9 -> 0.03 | F33: FAP | G33: =[1]Configurar!AE9 -> 1.6529 | I33: [(Grau de risco-RAT) x (Fator Acid Prev - FAP)]
A34: Art. 22, inciso II, alíneas ‘b’ e ‘c’, da Lei nº 8.212/91 - Anexo V do Decreto nº 3048/99
A35: SEBRAE | B35: 0.006 | C35: [(Total de Remuneração) x (Alíquota)]
A36: Lei nº 8.029/90, alterada pela Lei nº 8.154/90
A37: Total | B37: =SUM(B21:B35) -> 0.387587
A38: Submódulo 2.3 - Benefícios mensais e diários
A40: Transporte | C40: {[2 (ida/volta) x R$ (unit VT) x (dias trab)] - [R$ (salário base) x 6% (custo empregado)]}
A41: Lei 7418 de 16/12/1985 - Art 1° - Art 2° - Art 4° Parágrafo único
A42: Auxílio refeição/alimentação | C42: {[(vlr VA) x (dias trab)] - 1% (asseio) ou 20% (vigilância)}
A43: Acordo e/ou Convenção Coletiva do Trabalho - CCT vigente da categoria
A44: Contribuição assistencial patronal | C44: [(salário base) x 0,60% (asseio e vigilância)]
A45: Acordo e/ou Convenção Coletiva do Trabalho - Claúsula 46 CCT vigente da categoria
A46: Benefício de assistência ao trabalhador | C46: [R$ 11,00 (asseio p/empregado) ou R$ 14,00 (vigilância p/empregado)]
A47: Acordo e/ou Convenção Coletiva do Trabalho - Claúsula 16 CCT vigente da categoria
A48: Seguro de vida | C48: (custo de mercado)
A49: Acordo e/ou Convenção Coletiva do Trabalho - CCT vigente da categoria
A50: Total
A53: Módulo 3 - Provisão para Rescisão
A55: Item/Fundamentação | B55: Alíq (%) | C55: Memória de cálculo
A56: Aviso prévio indenizado | B56: =((1/12*5%)) -> 0.004166666667 | C56: {[(1 mês : 12 meses) x (5% (Coef ind)] : 30 dias x 33 dias}
A57: C F 1988 Art 7° Inc XXI - CLT Art 477 Art 487 ao 491 - Resolução CNJ 98/2009
A58: Incidência FGTS s/aviso prévio indenizado | B58: 0.0003 | C58: [8% (Alíq FGTS) x (Alíq Aviso prévio indenizado)]
A59: Lei 8036 11/05/1990 Art 15 - C F 1988 Art 7° Inc III - MTb IN 84 13/07/2010 - Acórdão TCU 1753/2008 Plenário
A60: Multa FGTS do aviso prévio indenizado | B60: 0.0016 | C60: [(1/100) - (0,10 x 0,08)]
A61: Lei 8036 11/05/1990 Art 18 § 1° c/Redação na Lei 9491 09/09/1997 - Resolução CNJ 98/2009 - LC 110 29/06/2001 Art 1°
A62: Aviso prévio trabalhado | B62: 0.0185 | C62: [(7 dias : 30 dias) : 12 meses]
A63: Acórdão TCU 3006/2010 Plenário - Resolução CNJ 98/2009
A64: Incidência de GPS, FGTS e outras contribuições sobre o aviso prévio trabalhado | B64: 0.3876 | C64: [ (Alíq aviso prévio trabalhado) x (Total submódulo 2.2)]
A66: Lei 8212 24/07/1991 Art 22 Inc - Acórdão TCU 1753/2008 Plenário
A67: Multa FGTS do aviso prévio trabalhado | B67: 0.0304 | C67: [(40%) x (Alíq 8% FGTS)]
A68: Lei 8036 11/05/1990 Art 18 § 1° c/Redação na Lei 9491 09/09/1997 - Resolução CNJ 98/2009 - LC 110 29/06/2001 Art 1°
A70: Módulo 4 - Custo de Reposição do Profissional Ausente
A72: Submódulo 4.1 - Ausências Legais
A74: Substituto na cobertura de férias | B74: 0.0833
A75: Substituto na cobertura de ausências legais | B75: 0.0139
A76: Art. 473 da CLT e Acórdão TCU 6771/2009
A77: Substituto na cobertura de licença-paternidade | B77: 0.0008
A78: Art. 7º, inciso XIX, da Constituição Federal
A79: Substituto na cobertura de ausência por acidente de trabalho | B79: 0.0038
A81: Arts. 19 à 23 da Lei 8.213/91 - Lei nº 6.367/76 e art. 473 da CLT
A82: Substituto na cobertura de afastamento maternidade | B82: 0.0009
A84: Art. 476 da CLT; art. 6º, §1º, alínea "f", da Lei 605/49 c/c art. 12, alínea "f", do Decreto 27.048/49 e Acórdão TCU nº 1.753/2008 Plenário.
A85: Sub-Total | B85: =SUM(B74:B82) -> 0.1027
A86: Incidência encargos submódulo 4.1 s/custo reposição profissional ausente | B86: =B85*B37 -> 0.0398051849 | C86: [(Subtotal submódulo 4.1) x (Total submódulo 2.2)]
A88: Total | B88: =B86+B85 -> 0.1425051849
A89: Submódulo 4.1.1 - Afastamento maternidade (120 dias)
A91: Férias pagas substituto nos 120 dias de reposição | B91: =(0.0144*0.1*0.4509*(4/12)) -> 0.000216432 | C91: [(0,0144 x 0,1 x 0,4509) x (6/12)]
A92: Art. 6º e 201 da CF, art. 392 da CLT
A93: 13° Sal pago ao substituto do afast maternidade | B93: =(1/12)*(4/12) -> 0.02777777778 | C93: [( 1 mês : 12 meses) x (4 meses : 12 meses)]
A94: Art. 6º e 201 da CF, art. 392 da CLT
A95: Incidência do submódulo 2.2 s/afastamento maternidade prop aos 120 dias de reposição | B95: =(0.0144*0.1*0.4509*(4/12))*B37 -> 8.388622958e-05 | C95: {[(0,0144 x 0,1 x 0,4509) x (4/12)] x (Total submódulo 2.2)}
A97: Art. 6º e 201 da CF, art. 392 da CLT
A98: Total | B98: =SUM(B91:B95) -> 0.02807809601
A99: Total geral - Encargos e provisões | B99: =B17+B37+B69+B88+B98 -> 0.7526147254

Sheet Uniforme
A1: Planilha de Custos e Formação de Preços | I1: Inserir preços aqui
A2: =[1]Configurar!C7&" - "&[1]Configurar!D8&" "&[1]Configurar!Q8 -> Processo Licitatório - Pregão Eletrônico 025/2021
A3: 1. Servente de limpeza
A4: Uniformes - Campus São Bento do Sul
A6: Descrição | B6: Unidade | C6: Per p/ Troca | D6: Quantidades | F6: Valor Unitário | G6: Valor Mensal | I6: 6 | J6: Preço base unitário
C7: (em meses) | D7: por Func | E7: por Ano | F7: (R$) | G7: (R$)
A8: Calça comprida em brim com bolsos laterais e traseiros | B8: UN | C8: 6 | D8: 2 | E8: =((12/C8)*D8) -> 4 | F8: =J8*[1]Configurar!$G$40 -> 17.0786 | G8: =IFERROR((((F8*E8)/12)*[1]Configurar!$G$40),0) -> 2.777891219 | H8: =(E8*F8)/12 -> 5.692866667 | I8: 1 | J8: 35 | K8: =IF(J8=""," << Este item está sem preço","") -> 
A9: Jalecos em brim, manga curta, com logomarca da empresa impressa ou bordada no bolso | B9: UN | C9: 6 | D9: 2 | E9: =((12/C9)*D9) -> 4 | F9: =J9*[1]Configurar!$G$40 -> 14.6388 | G9: =IFERROR((((F9*E9)/12)*[1]Configurar!$G$40),0) -> 2.381049616 | H9: =(E9*F9)/12 -> 4.8796 | I9: 2 | J9: 30 | K9: =IF(J9=""," << Este item está sem preço","") -> 
A10: Camisetas manga curta, malha fria, 100% algodão, gola esporte com emblema da empresa pintado | B10: UN | C10: 6 | D10: 2 | E10: =((12/C10)*D10) -> 4 | F10: =J10*[1]Configurar!$G$40 -> 14.6388 | G10: =IFERROR((((F10*E10)/12)*[1]Configurar!$G$40),0) -> 2.381049616 | H10: =(E10*F10)/12 -> 4.8796 | I10: 3 | J10: 30 | K10: =IF(J10=""," << Este item está sem preço","") -> 
A11: Camisetas manga longa, malha fria, gola esporte com emblema da empresa pintado | B11: UN | C11: 6 | D11: 2 | E11: =((12/C11)*D11) -> 4 | F11: =J11*[1]Configurar!$G$40 -> 15.61472 | G11: =IFERROR((((F11*E11)/12)*[1]Configurar!$G$40),0) -> 2.539786257 | H11: =(E11*F11)/12 -> 5.204906667 | I11: 4 | J11: 32 | K11: =IF(J11=""," << Este item está sem preço","") -> 
A12: Casaco ou jaqueta em nylon, com zíper na frente e bolsos laterais, com forro interno | B12: UN | C12: 12 | D12: 1 | E12: =((12/C12)*D12) -> 1 | F12: =J12*[1]Configurar!$G$40 -> 21.9582 | G12: =IFERROR((((F12*E12)/12)*[1]Configurar!$G$40),0) -> 0.892893606 | H12: =(E12*F12)/12 -> 1.82985 | I12: 5 | J12: 45 | K12: =IF(J12=""," << Este item está sem preço","") -> 
A13: Casaco tipo moletom, material algodão | B13: UN | C13: 12 | D13: 1 | E13: =((12/C13)*D13) -> 1 | F13: =J13*[1]Configurar!$G$40 -> 24.398 | G13: =IFERROR((((F13*E13)/12)*[1]Configurar!$G$40),0) -> 0.9921040067 | H13: =(E13*F13)/12 -> 2.033166667 | I13: 6 | J13: 50 | K13: =IF(J13=""," << Este item está sem preço","") -> 
A14: Sub-total - Uniformes - (mensal/percapita) | G14: =SUM(G8:G13) -> 11.96477432 | H14: =SUM(H8:H13) -> 24.51999 | K14: =(G14-H14)/H14 -> -0.51204
A15: EPIs - Campus São Bento do Sul
A17: Descrição | B17: Unidade | C17: Per p/ Troca | D17: Quantidades | F17: Valor Unitário | G17: Valor Mensal
C18: (em meses) | D18: por Func | E18: por Ano | F18: (R$) | G18: (R$)
A19: Calçado ocupacional, confeccionado em couro hidrofugado,. palmilha montada pelo sistema strobel, com bico de conformação e solado de poliuretano bidensidade injetado direto | B19: PAR | C19: 6 | D19: 1 | E19: =IFERROR(((12/C19)*D19),"") -> 2 | F19: =J19*[1]Configurar!$G$40 -> 19.5184 | G19: =IFERROR((((F19*E19)/12)*[1]Configurar!$G$40),0) -> 1.587366411 | H19: =(E19*F19)/12 -> 3.253066667 | I19: 1 | J19: 40 | K19: =IF(J19=""," << Este item está sem preço","") -> 
A20: Calçado ocupacional tipo bota Classe II (impermeável), confeccionada com policloreto de vinila (PVC) e borracha nitrílica, cano longo | B20: PAR | C20: 6 | D20: 1 | E20: =IFERROR(((12/C20)*D20),"") -> 2 | F20: =J20*[1]Configurar!$G$40 -> 24.398 | G20: =IFERROR((((F20*E20)/12)*[1]Configurar!$G$40),0) -> 1.984208013 | H20: =(E20*F20)/12 -> 4.066333333 | I20: 2 | J20: 50 | K20: =IF(J20=""," << Este item está sem preço","") -> 
A21: Luva de látex forrada com palma antiderrapante, cano longo | B21: PAR | C21: 1 | D21: 12 | E21: =IFERROR(((12/C21)*D21),"") -> 144 | F21: =J21*[1]Configurar!$G$40 -> 0.292776 | G21: =IFERROR((((F21*E21)/12)*[1]Configurar!$G$40),0) -> 1.714355724 | H21: =(E21*F21)/12 -> 3.513312 | I21: 3 | J21: 0.6 | K21: =IF(J21=""," << Este item está sem preço","") -> 
A22: Máscara Descartável, respirador semifacial PFF2, para proteção contra poeiras, névoas e fumos | B22: UN | C22: 1 | D22: 22 | E22: =IFERROR(((12/C22)*D22),"") -> 264 | F22: =J22*[1]Configurar!$G$40 -> 0.390368 | G22: =IFERROR((((F22*E22)/12)*[1]Configurar!$G$40),0) -> 4.190647324 | H22: =(E22*F22)/12 -> 8.588096 | I22: 4 | J22: 0.8 | K22: =IF(J22=""," << Este item está sem preço","") -> 
A23: Óculos de Proteção contra partículas multidirecionais. Incolor | B23: UN | C23: 12 | D23: 1 | E23: =IFERROR(((12/C23)*D23),"") -> 1 | F23: =J23*[1]Configurar!$G$40 -> 12.199 | G23: =IFERROR((((F23*E23)/12)*[1]Configurar!$G$40),0) -> 0.4960520033 | H23: =(E23*F23)/12 -> 1.016583333 | I23: 5 | J23: 25 | K23: =IF(J23=""," << Este item está sem preço","") -> 
A24: Protetor Solar FPS 30, 120g | B24: UN | C24: 2 | D24: 1 | E24: =IFERROR(((12/C24)*D24),"") -> 6 | F24: =J24*[1]Configurar!$G$40 -> 14.6388 | G24: =IFERROR((((F24*E24)/12)*[1]Configurar!$G$40),0) -> 3.571574424 | H24: =(E24*F24)/12 -> 7.3194 | I24: 6 | J24: 30 | K24: =IF(J24=""," << Este item está sem preço","") -> 
A25: Luva Nitrílica, na cor verde, punho longo 45cm | B25: PAR | C25: 1 | D25: 8 | E25: =IFERROR(((12/C25)*D25),"") -> 96 | F25: =J25*[1]Configurar!$G$40 -> 0.585552 | G25: =IFERROR((((F25*E25)/12)*[1]Configurar!$G$40),0) -> 2.285807631 | H25: =(E25*F25)/12 -> 4.684416 | I25: 7 | J25: 1.2 | K25: =IF(J25=""," << Este item está sem preço","") -> 
A26: Protetor auricular (em caso de exposição a ruído) | B26: PAR | C26: 12 | D26: 1 | E26: =IFERROR(((12/C26)*D26),"") -> 1 | F26: =J26*[1]Configurar!$G$40 -> 9.7592 | G26: =IFERROR((((F26*E26)/12)*[1]Configurar!$G$40),0) -> 0.3968416027 | H26: =(E26*F26)/12 -> 0.8132666667 | I26: 8 | J26: 20 | K26: =IF(J26=""," << Este item está sem preço","") -> 
A27: Avental de PVC impermeável | B27: UN | C27: 12 | D27: 1 | E27: =IFERROR(((12/C27)*D27),"") -> 1 | F27: =J27*[1]Configurar!$G$40 -> 14.6388 | G27: =IFERROR((((F27*E27)/12)*[1]Configurar!$G$40),0) -> 0.595262404 | H27: =(E27*F27)/12 -> 1.2199 | I27: 9 | J27: 30 | K27: =IF(J27=""," << Este item está sem preço","") -> 
A28: Sub-total - EPIs - (mensal/percapita) | G28: =SUM(G19:G27) -> 16.82211554 | H28: =SUM(H19:H27) -> 34.474374 | K28: =(G28-H28)/H28 -> -0.51204
A29: Total - Uniformes e EPIs - (mensal/percapita) | G29: =G14+G28 -> 28.78688986 | H29: =H28+H14 -> 58.994364 | K29: =(G29-H29)/H29 -> -0.51204

Sheet Produto
A1: Planilha de Custos e Formação de Preços | I1: Inserir preços aqui
A2: =[1]Configurar!C7&" - "&[1]Configurar!D8&" "&[1]Configurar!Q8 -> Processo Licitatório - Pregão Eletrônico 025/2021
A3: Produtos - Campus São Bento do Sul
A5: Descrição | B5: Unidade | C5: QuantIdades | E5: Valor Unit (R$) | F5: Custo Total no Mês (R$) | G5: Custo Mês p/capita (R$) | I5: 6 | J5: Preço base unitário
C6: Anual | D6: Mensal | K6: 0.65
A7: Água Sanitária. Composição química: hipoclorito de sódio, hidróxido de sódio, cloreto, teor cloro ativo varia de 2 a 2,50 %. Cor incolor. Embalagem plástica com tampa lacrada | B7: GL 5L | C7: =D7*12 -> 24 | D7: 2 | E7: =J7 -> 3.068 | F7: =E7*D7 -> 6.136 | G7: =(F7/$E$62) -> 1.534 | I7: 1 | J7: =K7*$K$6 -> 3.068 | K7: 4.72
A8: Álcool em gel, anti séptico para as mãos, álcool etílico 70%. Galão com 5 litros | B8: GL 5L | C8: =D8*12 -> 120 | D8: 10 | E8: =J8 -> 19.006 | F8: =E8*D8 -> 190.06 | G8: =(F8/$E$62) -> 47.515 | I8: 2 | J8: =K8*$K$6 -> 19.006 | K8: 29.24
A9: Balde plástico com capacidade para 15 litros. Material plástico com alça metálica, sem tampa, formato cilíndrico para uso geral | B9: UN | C9: =D9*12 -> 0 | D9: 0 | E9: =J9 -> 9.347 | F9: =E9*D9 -> 0 | G9: =(F9/$E$62) -> 0 | I9: 3 | J9: =K9*$K$6 -> 9.347 | K9: 14.38
A10: Balde plástico com capacidade para 20 litros. Material plástico com alça metálica, sem tampa, formato cilíndrico para uso geral | B10: UN | C10: =D10*12 -> 6 | D10: 0.5 | E10: =J10 -> 9.347 | F10: =E10*D10 -> 4.6735 | G10: =(F10/$E$62) -> 1.168375 | I10: 4 | J10: =K10*$K$6 -> 9.347 | K10: 14.38
A11: Desinfetante. Contém hipoclorito de sódio, perfume e água. Usado para higienização | B11: GL 5L | C11: =D11*12 -> 96 | D11: 8 | E11: =J11 -> 5.2325 | F11: =E11*D11 -> 41.86 | G11: =(F11/$E$62) -> 10.465 | I11: 5 | J11: =K11*$K$6 -> 5.2325 | K11: 8.05
A12: Detergente. Composição: ph neutro, biodegradável e outras substâncias. Líquido. Para uso na remoção de gordura e sujeira em geral. | B12: FR 5OOML | C12: =D12*12 -> 48 | D12: 4 | E12: =J12 -> 0.8385 | F12: =E12*D12 -> 3.354 | G12: =(F12/$E$62) -> 0.8385 | I12: 6 | J12: =K12*$K$6 -> 0.8385 | K12: 1.29
A13: Escova para vaso sanitário, cabo em plástico resistente | B13: UN | C13: =D13*12 -> 1.9992 | D13: 0.1666 | E13: =J13 -> 1.365 | F13: =E13*D13 -> 0.227409 | G13: =(F13/$E$62) -> 0.05685225 | I13: 7 | J13: =K13*$K$6 -> 1.365 | K13: 2.1
A14: Escova para lavar roupa oval. Material corpo madeira, tratamento superficial envernizado, cerdas sintético | B14: UN | C14: =D14*12 -> 12 | D14: 1 | E14: =J14 -> 1.1635 | F14: =E14*D14 -> 1.1635 | G14: =(F14/$E$62) -> 0.290875 | I14: 8 | J14: =K14*$K$6 -> 1.1635 | K14: 1.79
A15: Esponja de aço inoxidável de longa duração. Não enferruja. Peso pacote 10 gr | B15: UN | C15: =D15*12 -> 0 | D15: 0 | E15: =J15 -> 0.8385 | F15: =E15*D15 -> 0 | G15: =(F15/$E$62) -> 0 | I15: 9 | J15: =K15*$K$6 -> 0.8385 | K15: 1.29
A16: Luva de segurança tricotada em algodão reciclado, revestida em látex natural corrugado na palma e dedos, punho em elástico, para proteção das mãos do usuário contra agentes abrasivos, escoriantes, cortantes e perfurantes. (Tipo Gladiador) | B16: PAR | C16: =D16*12 -> 0 | D16: 0 | E16: =J16 -> 2.47 | F16: =E16*D16 -> 0 | G16: =(F16/$E$62) -> 0 | I16: 10 | J16: =K16*$K$6 -> 2.47 | K16: 3.8
A17: Luva, confeccionada em borracha natural, cor amarela; flocada em algodão internamente; com antiderrapante na palma, face palmar dos dedos e pontas dos dedos. tamanhos pequeno, médio, grande | B17: PAR | C17: =D17*12 -> 72 | D17: 6 | E17: =J17 -> 2.2945 | F17: =E17*D17 -> 13.767 | G17: =(F17/$E$62) -> 3.44175 | I17: 11 | J17: =K17*$K$6 -> 2.2945 | K17: 3.53
A18: Esponja dupla face. Material espuma/fibra sintética, formato retangular, comprimento mínimo 110 mm, largura mínima 75 mm, espessura mínima 20 mm. Aplicação na limpeza em geral | B18: UN | C18: =D18*12 -> 144 | D18: 12 | E18: =J18 -> 0.3575 | F18: =E18*D18 -> 4.29 | G18: =(F18/$E$62) -> 1.0725 | I18: 12 | J18: =K18*$K$6 -> 0.3575 | K18: 0.55
A19: Esponja de fibras abrasivas para limpeza pesada. Possui coloração verde escura de abrasão intensa para utilização em superfícies que apresentam sujeiras persistentes tais como pisos, paredes, etc. Dimensões mínimas 130 x 240 mm | B19: UN | C19: =D19*12 -> 0 | D19: 0 | E19: =J19 -> 0.65 | F19: =E19*D19 -> 0 | G19: =(F19/$E$62) -> 0 | I19: 13 | J19: =K19*$K$6 -> 0.65 | K19: 1
A20: Espanador de pó, cabo em madeira, comprimento cabo mínimo de 40 cm | B20: UN | C20: =D20*12 -> 19.9992 | D20: 1.6666 | E20: =J20 -> 8.58 | F20: =E20*D20 -> 14.299428 | G20: =(F20/$E$62) -> 3.574857 | I20: 14 | J20: =K20*$K$6 -> 8.58 | K20: 13.2
A21: Flanela na cor laranja, 100% algodão, para uso geral. Tamanho mínimo 50 x 30 cm | B21: UN | C21: =D21*12 -> 480 | D21: 40 | E21: =J21 -> 0.7475 | F21: =E21*D21 -> 29.9 | G21: =(F21/$E$62) -> 7.475 | I21: 15 | J21: =K21*$K$6 -> 0.7475 | K21: 1.15
A22: Desodorizador de ar 400 ml | B22: FR 4OOML | C22: =D22*12 -> 72 | D22: 6 | E22: =J22 -> 5.785 | F22: =E22*D22 -> 34.71 | G22: =(F22/$E$62) -> 8.6775 | I22: 16 | J22: =K22*$K$6 -> 5.785 | K22: 8.9
A23: Pastilha Adesiva desinfetante para vaso sanitário | B23: CX 3UN | C23: =D23*12 -> 120 | D23: 10 | E23: =J23 -> 3.575 | F23: =E23*D23 -> 35.75 | G23: =(F23/$E$62) -> 8.9375 | I23: 17 | J23: =K23*$K$6 -> 3.575 | K23: 5.5
A24: Limpa vidros spray, com pulverizador roscável em forma de gatilho e reapróveitavel. Composto a base de lauril éter sulfato de sódio. Frasco com 500ml | B24: FR 5OOML | C24: =D24*12 -> 36 | D24: 3 | E24: =J24 -> 1.95 | F24: =E24*D24 -> 5.85 | G24: =(F24/$E$62) -> 1.4625 | I24: 18 | J24: =K24*$K$6 -> 1.95 | K24: 3
A25: Limpador multiuso e desengordurante para limpeza geral. Tampa tipo flip com bico dosador. Composição básica: alquil benzeno sulfonato de sódio, álcool etoxilado, coadjuvantes, água e conservante, fragrância. Frasco de 500ml | B25: FR 5OOML | C25: =D25*12 -> 144 | D25: 12 | E25: =J25 -> 3.2435 | F25: =E25*D25 -> 38.922 | G25: =(F25/$E$62) -> 9.7305 | I25: 19 | J25: =K25*$K$6 -> 3.2435 | K25: 4.99
A26: Pá para lixo uso doméstico. Material coletor plástico, material cabo plástico, medindo no mínimo 40 cm | B26: UN | C26: =D26*12 -> 6 | D26: 0.5 | E26: =J26 -> 3.315 | F26: =E26*D26 -> 1.6575 | G26: =(F26/$E$62) -> 0.414375 | I26: 20 | J26: =K26*$K$6 -> 3.315 | K26: 5.1
A27: Papel higiênico rolão. Rolos de 300 metros. Caixa com 8 rolos | B27: CX 8RL | C27: =D27*12 -> 168 | D27: 14 | E27: =J27 -> 20.8 | F27: =E27*D27 -> 291.2 | G27: =(F27/$E$62) -> 72.8 | I27: 21 | J27: =K27*$K$6 -> 20.8 | K27: 32
A28: Rodo com cabo rosqueável. Material cabo plástico. Material suporte plástico ou metal com comprimento de 40 cm, cabo com no mínimo 1,20 cm. Quantidade de borrachas 2 | B28: UN | C28: =D28*12 -> 12 | D28: 1 | E28: =J28 -> 5.005 | F28: =E28*D28 -> 5.005 | G28: =(F28/$E$62) -> 1.25125 | I28: 22 | J28: =K28*$K$6 -> 5.005 | K28: 7.7
A29: Rodo para vidraça. Material base borracha. Comprimento cabo no mínimo 1,20 M, fixo ou retrátil. Tipo rodo. Aplicação limpeza vidro | B29: UN | C29: =D29*12 -> 0 | D29: 0 | E29: =J29 -> 6.37 | F29: =E29*D29 -> 0 | G29: =(F29/$E$62) -> 0 | I29: 23 | J29: =K29*$K$6 -> 6.37 | K29: 9.8
A30: Sabão em barra 200 gr. Glicerinado, neutro, multiuso, biodegradável, para limpeza em geral | B30: UN | C30: =D30*12 -> 12 | D30: 1 | E30: =J30 -> 0.78 | F30: =E30*D30 -> 0.78 | G30: =(F30/$E$62) -> 0.195 | I30: 24 | J30: =K30*$K$6 -> 0.78 | K30: 1.2
A31: Sabão em pó. Biodegradável, com amaciante. Aplicação lavar roupa e limpeza geral. Embalagem com 1 kg | B31: 1 KG | C31: =D31*12 -> 24 | D31: 2 | E31: =J31 -> 6.89 | F31: =E31*D31 -> 13.78 | G31: =(F31/$E$62) -> 3.445 | I31: 25 | J31: =K31*$K$6 -> 6.89 | K31: 10.6
A32: Sabonete líquido, fragrância, hidratante. Galão com 5 litros | B32: GL 5L | C32: =D32*12 -> 180 | D32: 15 | E32: =J32 -> 7.93 | F32: =E32*D32 -> 118.95 | G32: =(F32/$E$62) -> 29.7375 | I32: 26 | J32: =K32*$K$6 -> 7.93 | K32: 12.2
A33: Saco plástico para lixo. Capacidade 40 litros, Cor preta. Largura mínima 59 cm e altura mínima 62 cm. Material polietileno. Para uso doméstico. Pacote com 100 unidades | B33: PCT 100UN | C33: =D33*12 -> 36 | D33: 3 | E33: =J33 -> 8.3655 | F33: =E33*D33 -> 25.0965 | G33: =(F33/$E$62) -> 6.274125 | I33: 27 | J33: =K33*$K$6 -> 8.3655 | K33: 12.87
A34: Saco plástico para lixo. Capacidade 100 litros, Cor preta. Largura mínima 75 cm e altura mínima 100 cm. Material polietileno, opaco, super-resistente Aplicação coleta de lixo. Pacote com 100 unidades | B34: PCT 100UN | C34: =D34*12 -> 60 | D34: 5 | E34: =J34 -> 12.35 | F34: =E34*D34 -> 61.75 | G34: =(F34/$E$62) -> 15.4375 | I34: 28 | J34: =K34*$K$6 -> 12.35 | K34: 19
A35: Saco plástico para lixo. Capacidade 150 litros, fabricado em plástico resistente, cor preta. Pacote com 100 unidades | B35: PCT 100UN | C35: =D35*12 -> 0 | D35: 0 | E35: =J35 -> 16.4125 | F35: =E35*D35 -> 0 | G35: =(F35/$E$62) -> 0 | I35: 29 | J35: =K35*$K$6 -> 16.4125 | K35: 25.25
A36: Saco alvejado. Características: duplo, material 100% algodão, tipo alvejado, tamanho mínimo de 50 x 70 cm | B36: UN | C36: =D36*12 -> 360 | D36: 30 | E36: =J36 -> 2.015 | F36: =E36*D36 -> 60.45 | G36: =(F36/$E$62) -> 15.1125 | I36: 30 | J36: =K36*$K$6 -> 2.015 | K36: 3.1
A37: Saponáceo Líquido cremoso, limpeza e brilho sem riscar. Composição: linear arquibenzeno, sulfonato de sódio. Embalagem de 300 ml | B37: EMB 300ML | C37: =D37*12 -> 60 | D37: 5 | E37: =J37 -> 4.42 | F37: =E37*D37 -> 22.1 | G37: =(F37/$E$62) -> 5.525 | I37: 31 | J37: =K37*$K$6 -> 4.42 | K37: 6.8
A38: Toalha de papel. Cor creme. Composição: 100% fibras celulósicas. Toalha Interfolhas duas dobras. Formato: 19,5 cm x 20,5 cm. Pacote com 1000 unidades | B38: PCT 1000UN | C38: =D38*12 -> 3000 | D38: 250 | E38: =J38 -> 4.355 | F38: =E38*D38 -> 1088.75 | G38: =(F38/$E$62) -> 272.1875 | I38: 32 | J38: =K38*$K$6 -> 4.355 | K38: 6.7
A39: Vassoura de nylon com cabo plástico. Com dimensões mínimas de 11cm e espessura de 0,80mm, dispostas em no mínimo de 4 carreiras de tufos justapostos e homogêneos de modo a preencher toda a base, a fixação das cerdas e a base deverá ser firme e resistente. Cabo reto e rosqueado com comprimento mínimo de 1,20 m. Aplicação limpeza em geral | B39: UN | C39: =D39*12 -> 36 | D39: 3 | E39: =J39 -> 2.99 | F39: =E39*D39 -> 8.97 | G39: =(F39/$E$62) -> 2.2425 | I39: 33 | J39: =K39*$K$6 -> 2.99 | K39: 4.6
A40: Vassoura de palha com cabo. Material cerdas palha, material cabo madeira, comprimento cerdas no mínimo 60 cm. Cabo com comprimento mínimo de 1,20 m. Aplicação limpeza em geral | B40: UN | C40: =D40*12 -> 0 | D40: 0 | E40: =J40 -> 3.965 | F40: =E40*D40 -> 0 | G40: =(F40/$E$62) -> 0 | I40: 34 | J40: =K40*$K$6 -> 3.965 | K40: 6.1
A41: Alcool etílico Liquido, 46º INPM | B41: LT | C41: =D41*12 -> 300 | D41: 25 | E41: =J41 -> 3.7895 | F41: =E41*D41 -> 94.7375 | G41: =(F41/$E$62) -> 23.684375 | I41: 35 | J41: =K41*$K$6 -> 3.7895 | K41: 5.83
A42: Placas sinalizadoras “LIMPEZA EM ANDAMENTO” | B42: UN | C42: =D42*12 -> 1.9992 | D42: 0.1666 | E42: =J42 -> 13.6695 | F42: =E42*D42 -> 2.2773387 | G42: =(F42/$E$62) -> 0.569334675 | I42: 36 | J42: =K42*$K$6 -> 13.6695 | K42: 21.03
A43: Placas sinalizadoras “PISO MOLHADO” | B43: UN | C43: =D43*12 -> 3 | D43: 0.25 | E43: =J43 -> 13.6695 | F43: =E43*D43 -> 3.417375 | G43: =(F43/$E$62) -> 0.85434375 | I43: 37 | J43: =K43*$K$6 -> 13.6695 | K43: 21.03
A44: Pedra Sanitária - 25g | B44: UN | C44: =D44*12 -> 360 | D44: 30 | E44: =J44 -> 0.494 | F44: =E44*D44 -> 14.82 | G44: =(F44/$E$62) -> 3.705 | I44: 38 | J44: =K44*$K$6 -> 0.494 | K44: 0.76
A45: Naftalina, pacote com 50 gr | B45: PCT 50GR | C45: =D45*12 -> 0 | D45: 0 | E45: =J45 -> 1.95 | F45: =E45*D45 -> 0 | G45: =(F45/$E$62) -> 0 | I45: 39 | J45: =K45*$K$6 -> 1.95 | K45: 3
A46: Esponja abrasiva branca para enceradeira (compatível com a enceradeira a ser fornecida pela empresa) | B46: UN | C46: =D46*12 -> 0 | D46: 0 | E46: =J46 -> 16.185 | F46: =E46*D46 -> 0 | G46: =(F46/$E$62) -> 0 | I46: 40 | J46: =K46*$K$6 -> 16.185 | K46: 24.9
A47: Rodo para aplicação de cera | B47: UN | C47: =D47*12 -> 0 | D47: 0 | E47: =J47 -> 4.7905 | F47: =E47*D47 -> 0 | G47: =(F47/$E$62) -> 0 | I47: 41 | J47: =K47*$K$6 -> 4.7905 | K47: 7.37
A48: Detergente clorado alcalino. Líquido límpido viscoso de coloração amarelada e odor característico, composto pela mistura de substâncias nocivas como Hidróxido de Sódio (10-20%), Hipoclorito de Sódio 12% (20 - 30%). Apresenta pH básico (12,0-14,0), teor de cloro de 2,40 – 2,60 e densidade a 25ºC de 1,100 a 1,200. Este detergente é solúvel em água | B48: GL 5L | C48: =D48*12 -> 96 | D48: 8 | E48: =J48 -> 5.785 | F48: =E48*D48 -> 46.28 | G48: =(F48/$E$62) -> 11.57 | I48: 42 | J48: =K48*$K$6 -> 5.785 | K48: 8.9
A49: Mop úmido tamanho grande | B49: UN | C49: =D49*12 -> 36 | D49: 3 | E49: =J49 -> 6.175 | F49: =E49*D49 -> 18.525 | G49: =(F49/$E$62) -> 4.63125 | I49: 43 | J49: =K49*$K$6 -> 6.175 | K49: 9.5
A50: Mop para pó/seco tamanho grande | B50: UN | C50: =D50*12 -> 36 | D50: 3 | E50: =J50 -> 13 | F50: =E50*D50 -> 39 | G50: =(F50/$E$62) -> 9.75 | I50: 44 | J50: =K50*$K$6 -> 13 | K50: 20
A51: Aplicador de cera 45 cm. Sistema de fixação mola-trava, que permite fácil colocação do cabo. O cabo em alumínio com sistema de angulação (180°) de 1,4m (conforme modelo do e-mail) | B51: UN | C51: =D51*12 -> 0 | D51: 0 | E51: =J51 -> 13.5005 | F51: =E51*D51 -> 0 | G51: =(F51/$E$62) -> 0 | I51: 45 | J51: =K51*$K$6 -> 13.5005 | K51: 20.77
A52: Vinagre branco | B52: LT | C52: =D52*12 -> 0 | D52: 0 | E52: =J52 -> 0.637 | F52: =E52*D52 -> 0 | G52: =(F52/$E$62) -> 0 | I52: 46 | J52: =K52*$K$6 -> 0.637 | K52: 0.98
A53: Alvejante para superfícies minerais e desincrustante ácido. Produto de Referência: Audax Concentrax Limpa Pedra O uso geral dele é limpeza de superfícies minerais e remoção de liga contendo cimento e areia. Ideal para calçadas de pedras, pisos rústicos, crostas de lama, pisos encardidos, pisos com respingos de concreto ou ferrugem e pisos de pedra em geral | B53: GL 5L | C53: =D53*12 -> 0 | D53: 0 | E53: =J53 -> 13 | F53: =E53*D53 -> 0 | G53: =(F53/$E$62) -> 0 | I53: 47 | J53: =K53*$K$6 -> 13 | K53: 20
A54: Querosene | B54: LT | C54: =D54*12 -> 1.9992 | D54: 0.1666 | E54: =J54 -> 11.7 | F54: =E54*D54 -> 1.94922 | G54: =(F54/$E$62) -> 0.487305 | I54: 48 | J54: =K54*$K$6 -> 11.7 | K54: 18
A55: Extensor telescópio para limpeza em altura, extensível de 2,5 a 5,0 metros, produzido em alumínio | B55: UN | C55: =D55*12 -> 72 | D55: 6 | E55: =J55 -> 42.393 | F55: =E55*D55 -> 254.358 | G55: =(F55/$E$62) -> 63.5895 | I55: 49 | J55: =K55*$K$6 -> 42.393 | K55: 65.22
A56: Detergente para estofador e carpetes. Marca de referência carpex | B56: GL 5L | C56: =D56*12 -> 0 | D56: 0 | E56: =J56 -> 12.285 | F56: =E56*D56 -> 0 | G56: =(F56/$E$62) -> 0 | I56: 50 | J56: =K56*$K$6 -> 12.285 | K56: 18.9
A57: Limpador de Rejuntes | B57: GL 5L | C57: =D57*12 -> 60 | D57: 5 | E57: =J57 -> 9.75 | F57: =E57*D57 -> 48.75 | G57: =(F57/$E$62) -> 12.1875 | I57: 51 | J57: =K57*$K$6 -> 9.75 | K57: 15
A58: Cera auto brilho. Composição: água, agentes nivelantes, agente antiespumante, conservante, agente formador de filme, agentes plastificantes, resina, polímero acrílico. Produto de referência: Cera Durol (marca Briosol) | B58: GL 5L | C58: =D58*12 -> 0 | D58: 0 | E58: =J58 -> 38.545 | F58: =E58*D58 -> 0 | G58: =(F58/$E$62) -> 0 | I58: 52 | J58: =K58*$K$6 -> 38.545 | K58: 59.3
A59: Limpador com Brilho. Limpador restaurador para renovação do brilho de pisos tratados com ceras, visando o aumento da vida útil do piso. Aroma Lavanda. Produto de Referência: Máxima Limpador com Brilho (marca Renko) | B59: GL 5L | C59: =D59*12 -> 0 | D59: 0 | E59: =J59 -> 5.2975 | F59: =E59*D59 -> 0 | G59: =(F59/$E$62) -> 0 | I59: 53 | J59: =K59*$K$6 -> 5.2975 | K59: 8.15
A60: Removedor para acabamento acrílico – Detergente removedor concentrado para remoção de acabamentos acrílicos de base aquosa e ceras de pisos laváveis. Baixa formação de espuma e odor. Embalagem 5l para rendimento de até 50 m2. Produto de referência: Atiwax Removedor para Acabamento Acrílico (marca Renko) | B60: GL 5L | C60: =D60*12 -> 0 | D60: 0 | E60: =J60 -> 71.89 | F60: =E60*D60 -> 0 | G60: =(F60/$E$62) -> 0 | I60: 54 | J60: =K60*$K$6 -> 71.89 | K60: 110.6
E61: Total Func | F61: Custo Total | G61: Custo p/Func
E62: =[1]Servente_SBentoSul!Y135 -> 4 | F62: =SUM(F7:F60) -> 2647.566271 | G62: =F62/E62 -> 661.8915677

Sheet Equipamento
A1: Planilha de Custos e Formação de Preços
A2: =[1]Configurar!C7&" - "&[1]Configurar!D8&" "&[1]Configurar!Q8 -> Processo Licitatório - Pregão Eletrônico 025/2021
A3: Equipamentos - Campus São Bento do Sul
A5: Descrição | B5: Unidade | C5: Quantidade | D5: Valor Referência (por unidade) | E5: Vida Útil em meses | F5: Valor Depreciação mensal
A8: Aspirador de pó/água profissional – 2400W – 220V (com extensão elétrica e demais acessórios necessários) | B8: UN | C8: 1 | D8: 850 | E8: 12 | F8: =(D8*C8)/E8 -> 70.83333333
A9: Lavadora de alta pressão com no mínimo 2200 libras e 1600W de potência – 220V (com extensão elétrica, mangueiras e demais acessórios necessários) | B9: UN | C9: 1 | D9: 1400 | E9: 48 | F9: =(D9*C9)/E9 -> 29.16666667
A10: Enceradeira profissional 550 W – 220V (com extensão elétrica, fibras e demais acessórios necessários) | B10: UN | C10: 0 | D10: 1600 | E10: 36 | F10: =(D10*C10)/E10 -> 0
A11: Carrinho mop (carro de limpeza com sistema de 2 águas, uma para solução limpadora e outra para água limpa) | B11: UN | C11: 3 | D11: 480 | E11: 24 | F11: =(D11*C11)/E11 -> 60
D12: Total Funcionário | E12: Total Depreciação Mensal | F12: Custo Funcionário
D14: =SBS!E142+SBS!E143 -> 4 | E14: =SUM(F8:F11) -> 160 | F14: =E14/D14 -> 40
